[Event "December 19 Late 2023"]
[Site "https://www.chess.com"]
[Date "2023.12.19"]
[Round "1"]
[White "Becerra, Juan David"]
[Black "Sahakyan, Aleks"]
[Result "0-1"]
[Board "76"]
[TimeControl "180+1"]
[WhiteFideId "4404998"]
[BlackFideId "13316338"]
[WhiteElo "2293"]
[BlackElo "2292"]
[WhiteTeam "COL"]
[BlackTeam "ARM"]
[WhiteClock "0:00:00"]
[BlackClock "0:00:16"]

1. d4 {[%clk 0:03:00]}  Nf6 {[%clk 0:02:58]} 2. Nc3 {[%clk 0:03:01]}  g6 {[%clk 0:02:57]} 3. e4 {[%clk 0:03:00]}  d6 {[%clk 0:02:57]} 4. Be3 {[%clk 0:02:59]}  Bg7 {[%clk 0:02:56]} 5. Bc4 {[%clk 0:02:57]}  O-O {[%clk 0:02:55]} 6. h3 {[%clk 0:02:57]}  Nxe4 {[%clk 0:02:55]} 7. Bxf7+ {[%clk 0:02:52]}  Rxf7 {[%clk 0:02:56]} 8. Nxe4 {[%clk 0:02:52]}  h6 {[%clk 0:02:52]} 9. Ne2 {[%clk 0:02:37]}  Nc6 {[%clk 0:02:47]} 10. O-O {[%clk 0:02:33]}  e5 {[%clk 0:02:38]} 11. c3 {[%clk 0:02:24]}  exd4 {[%clk 0:02:35]} 12. Nxd4 {[%clk 0:02:12]}  Ne5 {[%clk 0:02:24]} 13. Qb3 {[%clk 0:01:52]}  Qf8 {[%clk 0:02:17]} 14. Rad1 {[%clk 0:01:37]}  Kh7 {[%clk 0:02:15]} 15. f4 {[%clk 0:01:28]}  Nc6 {[%clk 0:02:14]} 16. Ng3 {[%clk 0:01:09]}  Nxd4 {[%clk 0:02:11]} 17. Bxd4 {[%clk 0:01:03]}  Bxd4+ {[%clk 0:02:11]} 18. Rxd4 {[%clk 0:01:02]}  c6 {[%clk 0:02:11]} 19. Qc2 {[%clk 0:00:53]}  Bf5 {[%clk 0:02:07]} 20. Nxf5 {[%clk 0:00:51]}  Rxf5 {[%clk 0:02:08]} 21. Re4 {[%clk 0:00:48]}  d5 {[%clk 0:01:58]} 22. Re6 {[%clk 0:00:45]}  Re8 {[%clk 0:01:54]} 23. Rfe1 {[%clk 0:00:43]}  Rxe6 {[%clk 0:01:49]} 24. Rxe6 {[%clk 0:00:43]}  Rf6 {[%clk 0:01:35]} 25. Qe2 {[%clk 0:00:38]}  Rxf4 {[%clk 0:01:19]} 26. Qe5 {[%clk 0:00:38]}  Rf1+ {[%clk 0:01:13]} 27. Kh2 {[%clk 0:00:37]}  Rf7 {[%clk 0:01:11]} 28. c4 {[%clk 0:00:29]}  dxc4 {[%clk 0:01:09]} 29. Qd4 {[%clk 0:00:21]}  Qb8+ {[%clk 0:00:31]} 30. Kg1 {[%clk 0:00:19]}  Qc8 {[%clk 0:00:30]} 31. Qxc4 {[%clk 0:00:16]}  Qf8 {[%clk 0:00:29]} 32. Qe4 {[%clk 0:00:16]}  Qc5+ {[%clk 0:00:25]} 33. Kh2 {[%clk 0:00:16]}  Qf5 {[%clk 0:00:26]} 34. Qe3 {[%clk 0:00:12]}  a5 {[%clk 0:00:24]} 35. Re8 {[%clk 0:00:12]}  b5 {[%clk 0:00:20]} 36. Qd4 {[%clk 0:00:04]}  Qf4+ {[%clk 0:00:20]} 37. Qxf4 {[%clk 0:00:04]}  Rxf4 {[%clk 0:00:21]} 38. Re7+ {[%clk 0:00:04]}  Kh8 {[%clk 0:00:21]} 39. Re6 {[%clk 0:00:04]}  Kg7 {[%clk 0:00:19]} 40. Rxc6 {[%clk 0:00:05]}  Rf2 {[%clk 0:00:20]} 41. Rc7+ {[%clk 0:00:05]}  Kf6 {[%clk 0:00:19]} 42. Rc6+ {[%clk 0:00:05]}  Kf7 {[%clk 0:00:18]} 43. b3 {[%clk 0:00:04]}  Rxa2 {[%clk 0:00:17]} 44. Rc5 {[%clk 0:00:05]}  b4 {[%clk 0:00:17]} 45. Rb5 {[%clk 0:00:05]}  Ra3 {[%clk 0:00:16]} 46. Kg3 {[%clk 0:00:05]}  Rxb3+ {[%clk 0:00:17]} 47. Kf4 {[%clk 0:00:06]}  a4 {[%clk 0:00:15]} 48. Ke5 {[%clk 0:00:05]}  Re3+ {[%clk 0:00:14]} 49. Kd4 {[%clk 0:00:05]}  Rg3 {[%clk 0:00:13]} 50. Rxb4 {[%clk 0:00:04]}  a3 {[%clk 0:00:13]} 51. Ke5 {[%clk 0:00:03]}  Rxg2 {[%clk 0:00:12]} 52. Rb7+ {[%clk 0:00:03]}  Ke8 {[%clk 0:00:13]} 53. Ra7 {[%clk 0:00:04]}  a2 {[%clk 0:00:13]} 54. Kf6 {[%clk 0:00:04]}  Kd8 {[%clk 0:00:12]} 55. Ke6 {[%clk 0:00:04]}  Kc8 {[%clk 0:00:13]} 56. Kf6 {[%clk 0:00:05]}  Kb8 {[%clk 0:00:13]} 57. Ra3 {[%clk 0:00:05]}  Kb7 {[%clk 0:00:13]} 58. Ra4 {[%clk 0:00:05]}  Kc6 {[%clk 0:00:14]} 59. Ra3 {[%clk 0:00:06]}  Kd5 {[%clk 0:00:14]} 60. Ra4 {[%clk 0:00:06]}  h5 {[%clk 0:00:14]} 61. h4 {[%clk 0:00:05]}  Kc5 {[%clk 0:00:15]} 62. Kg7 {[%clk 0:00:04]}  Kb5 {[%clk 0:00:15]} 63. Ra7 {[%clk 0:00:04]}  Kb4 {[%clk 0:00:15]} 64. Kh6 {[%clk 0:00:04]}  Kc3 {[%clk 0:00:16]} 65. Kg7 {[%clk 0:00:03]}  Kb2 {[%clk 0:00:16]} 66. Kh6 {[%clk 0:00:02]}  a1=Q {[%clk 0:00:15]} 67. Rxa1 {[%clk 0:00:00]}  Kxa1 {[%clk 0:00:16]} 0-1

[Event "December 19 Late 2023"]
[Site "https://www.chess.com"]
[Date "2023.12.19"]
[Round "1"]
[White "Adla, Diego"]
[Black "Li, Tedric"]
[Result "1/2-1/2"]
[Board "79"]
[TimeControl "180+1"]
[WhiteFideId "100072"]
[BlackFideId "3242897"]
[WhiteElo "2377"]
[BlackElo "1833"]
[WhiteTeam "ARG"]
[BlackTeam "AUS"]
[WhiteClock "0:00:57"]
[BlackClock "0:01:23"]

1. c4 {[%clk 0:02:59]}  Nf6 {[%clk 0:02:59]} 2. Nc3 {[%clk 0:02:59]}  e5 {[%clk 0:03:00]} 3. Nf3 {[%clk 0:02:58]}  Nc6 {[%clk 0:02:59]} 4. e4 {[%clk 0:02:58]}  Bb4 {[%clk 0:02:59]} 5. d3 {[%clk 0:02:59]}  O-O {[%clk 0:02:57]} 6. Be2 {[%clk 0:02:59]}  d6 {[%clk 0:02:57]} 7. O-O {[%clk 0:02:59]}  Be6 {[%clk 0:02:57]} 8. Ne1 {[%clk 0:02:58]}  Bxc3 {[%clk 0:02:56]} 9. bxc3 {[%clk 0:02:57]}  Nd7 {[%clk 0:02:57]} 10. f4 {[%clk 0:02:56]}  exf4 {[%clk 0:02:52]} 11. Bxf4 {[%clk 0:02:55]}  f5 {[%clk 0:02:52]} 12. Bf3 {[%clk 0:02:50]}  fxe4 {[%clk 0:02:36]} 13. Bxe4 {[%clk 0:02:49]}  Qh4 {[%clk 0:02:36]} 14. Bg3 {[%clk 0:02:42]}  Rxf1+ {[%clk 0:02:34]} 15. Kxf1 {[%clk 0:02:42]}  Qf6+ {[%clk 0:02:34]} 16. Kg1 {[%clk 0:02:40]}  Qxc3 {[%clk 0:02:32]} 17. Rb1 {[%clk 0:02:40]}  Nc5 {[%clk 0:02:30]} 18. Bf3 {[%clk 0:02:25]}  Rf8 {[%clk 0:02:22]} 19. Bf2 {[%clk 0:02:21]}  Nd4 {[%clk 0:02:16]} 20. Bxb7 {[%clk 0:02:11]}  Nxb7 {[%clk 0:02:17]} 21. Rxb7 {[%clk 0:02:10]}  c5 {[%clk 0:01:50]} 22. h3 {[%clk 0:02:02]}  Bf5 {[%clk 0:01:49]} 23. Rxa7 {[%clk 0:01:46]}  Re8 {[%clk 0:01:48]} 24. Nf3 {[%clk 0:01:43]}  Ne2+ {[%clk 0:01:35]} 25. Kh2 {[%clk 0:01:40]}  Qxd3 {[%clk 0:01:36]} 26. Qxd3 {[%clk 0:01:38]}  Bxd3 {[%clk 0:01:37]} 27. Rd7 {[%clk 0:01:26]}  Bxc4 {[%clk 0:01:36]} 28. Rxd6 {[%clk 0:01:26]}  Bxa2 {[%clk 0:01:37]} 29. Rd2 {[%clk 0:01:18]}  Bb3 {[%clk 0:01:33]} 30. Bxc5 {[%clk 0:01:16]}  Nf4 {[%clk 0:01:31]} 31. Rd7 {[%clk 0:01:12]}  Bd5 {[%clk 0:01:30]} 32. Bd4 {[%clk 0:01:10]}  Bxf3 {[%clk 0:01:21]} 33. Rxg7+ {[%clk 0:01:01]}  Kf8 {[%clk 0:01:21]} 34. gxf3 {[%clk 0:01:01]}  Ne6 {[%clk 0:01:21]} 35. Rxh7 {[%clk 0:00:59]}  Nxd4 {[%clk 0:01:22]} 36. Rh8+ {[%clk 0:01:00]}  Kf7 {[%clk 0:01:22]} 37. Rxe8 {[%clk 0:00:57]}  Kxe8 {[%clk 0:01:23]} 1/2-1/2

[Event "December 19 Late 2023"]
[Site "https://www.chess.com"]
[Date "2023.12.19"]
[Round "1"]
[White "Carrasco Miranda, Andres"]
[Black "Martinez Ramirez, Lennis"]
[Result "1-0"]
[Board "80"]
[TimeControl "180+1"]
[WhiteFideId "3405990"]
[BlackFideId "3509079"]
[WhiteElo "2183"]
[BlackElo "2405"]
[WhiteTeam "CHI"]
[BlackTeam "CUB"]
[WhiteClock "0:00:21"]
[BlackClock "0:00:17"]

1. d4 {[%clk 0:02:45]}  d5 {[%clk 0:02:59]} 2. c4 {[%clk 0:02:45]}  e6 {[%clk 0:02:59]} 3. g3 {[%clk 0:02:44]}  Nf6 {[%clk 0:03:00]} 4. Bg2 {[%clk 0:02:45]}  Be7 {[%clk 0:02:59]} 5. Nf3 {[%clk 0:02:45]}  O-O {[%clk 0:02:59]} 6. O-O {[%clk 0:02:46]}  a5 {[%clk 0:02:55]} 7. Nc3 {[%clk 0:02:40]}  c6 {[%clk 0:02:51]} 8. Qd3 {[%clk 0:02:39]}  b6 {[%clk 0:02:50]} 9. e4 {[%clk 0:02:39]}  Ba6 {[%clk 0:02:49]} 10. exd5 {[%clk 0:02:39]}  cxd5 {[%clk 0:02:49]} 11. Ne5 {[%clk 0:02:38]}  Nfd7 {[%clk 0:02:46]} 12. b3 {[%clk 0:02:07]}  Nxe5 {[%clk 0:02:45]} 13. dxe5 {[%clk 0:02:07]}  Nc6 {[%clk 0:02:43]} 14. Bf4 {[%clk 0:01:57]}  Rc8 {[%clk 0:02:41]} 15. Rad1 {[%clk 0:01:48]}  dxc4 {[%clk 0:02:30]} 16. Qxd8 {[%clk 0:01:44]}  Rfxd8 {[%clk 0:02:24]} 17. Rxd8+ {[%clk 0:01:36]}  Nxd8 {[%clk 0:02:15]} 18. bxc4 {[%clk 0:01:26]}  Rxc4 {[%clk 0:02:13]} 19. Ne4 {[%clk 0:01:25]}  Bb7 {[%clk 0:01:29]} 20. Re1 {[%clk 0:01:15]}  h6 {[%clk 0:01:25]} 21. Nd6 {[%clk 0:01:01]}  Bxd6 {[%clk 0:01:25]} 22. exd6 {[%clk 0:01:00]}  Bxg2 {[%clk 0:01:21]} 23. Kxg2 {[%clk 0:01:01]}  f6 {[%clk 0:01:19]} 24. Rb1 {[%clk 0:00:58]}  Rc6 {[%clk 0:01:05]} 25. d7 {[%clk 0:00:40]}  Kf7 {[%clk 0:00:59]} 26. Be3 {[%clk 0:00:39]}  Ke7 {[%clk 0:00:55]} 27. Bxb6 {[%clk 0:00:37]}  Nb7 {[%clk 0:00:39]} 28. d8=Q+ {[%clk 0:00:26]}  Nxd8 {[%clk 0:00:39]} 29. Bxa5 {[%clk 0:00:25]}  Rd6 {[%clk 0:00:28]} 30. Bb4 {[%clk 0:00:25]}  Nc6 {[%clk 0:00:27]} 31. Bxd6+ {[%clk 0:00:25]}  Kxd6 {[%clk 0:00:28]} 32. Rb7 {[%clk 0:00:25]}  g5 {[%clk 0:00:29]} 33. Rh7 {[%clk 0:00:25]}  Ke5 {[%clk 0:00:25]} 34. Rxh6 {[%clk 0:00:24]}  g4 {[%clk 0:00:23]} 35. Rh8 {[%clk 0:00:23]}  Nb4 {[%clk 0:00:23]} 36. a4 {[%clk 0:00:23]}  Kd5 {[%clk 0:00:21]} 37. Rc8 {[%clk 0:00:20]}  Nc6 {[%clk 0:00:20]} 38. f3 {[%clk 0:00:21]}  gxf3+ {[%clk 0:00:18]} 39. Kxf3 {[%clk 0:00:22]}  e5 {[%clk 0:00:19]} 40. h4 {[%clk 0:00:22]}  f5 {[%clk 0:00:19]} 41. Rxc6 {[%clk 0:00:21]}  e4+ {[%clk 0:00:20]} 42. Ke3 {[%clk 0:00:21]}  Kxc6 {[%clk 0:00:17]} 43. h5 {[%clk 0:00:21]} 1-0

[Event "December 19 Late 2023"]
[Site "https://www.chess.com"]
[Date "2023.12.19"]
[Round "1"]
[White "Tanenbaum, Zachary"]
[Black "Crasyhealer"]
[Result "1/2-1/2"]
[Board "81"]
[TimeControl "180+1"]
[WhiteFideId "2060850"]
[WhiteElo "2256"]
[BlackElo "2374"]
[WhiteTeam "USA"]
[WhiteClock "0:00:07"]
[BlackClock "0:00:16"]

1. e4 {[%clk 0:03:00]}  e5 {[%clk 0:02:58]} 2. Nf3 {[%clk 0:03:00]}  Nc6 {[%clk 0:02:58]} 3. Bc4 {[%clk 0:03:00]}  Bc5 {[%clk 0:02:57]} 4. d3 {[%clk 0:02:59]}  Nf6 {[%clk 0:02:56]} 5. c3 {[%clk 0:02:59]}  O-O {[%clk 0:02:56]} 6. O-O {[%clk 0:02:58]}  d6 {[%clk 0:02:54]} 7. Re1 {[%clk 0:02:57]}  Be6 {[%clk 0:02:53]} 8. Bxe6 {[%clk 0:02:56]}  fxe6 {[%clk 0:02:54]} 9. b4 {[%clk 0:02:56]}  Bb6 {[%clk 0:02:54]} 10. a4 {[%clk 0:02:36]}  a6 {[%clk 0:02:39]} 11. Be3 {[%clk 0:02:29]}  Ba7 {[%clk 0:02:30]} 12. Bxa7 {[%clk 0:02:28]}  Rxa7 {[%clk 0:02:28]} 13. Nbd2 {[%clk 0:02:28]}  a5 {[%clk 0:02:12]} 14. b5 {[%clk 0:02:28]}  Ne7 {[%clk 0:02:12]} 15. d4 {[%clk 0:02:28]}  exd4 {[%clk 0:02:03]} 16. cxd4 {[%clk 0:02:29]}  d5 {[%clk 0:02:01]} 17. e5 {[%clk 0:02:24]}  Nd7 {[%clk 0:01:55]} 18. Ng5 {[%clk 0:02:23]}  Rf5 {[%clk 0:01:20]} 19. Nxe6 {[%clk 0:02:21]}  Qc8 {[%clk 0:01:20]} 20. Qg4 {[%clk 0:02:17]}  g6 {[%clk 0:01:16]} 21. Ra3 {[%clk 0:02:07]}  Nb6 {[%clk 0:01:12]} 22. Nc5 {[%clk 0:01:54]}  Kg7 {[%clk 0:01:04]} 23. Rh3 {[%clk 0:01:52]}  Rxe5 {[%clk 0:01:02]} 24. Ne6+ {[%clk 0:01:44]}  Qxe6 {[%clk 0:00:48]} 25. Qxe6 {[%clk 0:01:44]}  Rxe6 {[%clk 0:00:49]} 26. Rxe6 {[%clk 0:01:44]}  Nf5 {[%clk 0:00:49]} 27. g4 {[%clk 0:01:36]}  Nxd4 {[%clk 0:00:49]} 28. Re7+ {[%clk 0:01:36]}  Kf6 {[%clk 0:00:50]} 29. Rxc7 {[%clk 0:01:34]}  Nxa4 {[%clk 0:00:48]} 30. Rhxh7 {[%clk 0:01:32]}  Nxb5 {[%clk 0:00:45]} 31. Rxb7 {[%clk 0:01:26]}  Rxb7 {[%clk 0:00:46]} 32. Rxb7 {[%clk 0:01:25]}  Nac3 {[%clk 0:00:46]} 33. Nb3 {[%clk 0:01:08]}  a4 {[%clk 0:00:44]} 34. Nc5 {[%clk 0:01:07]}  a3 {[%clk 0:00:45]} 35. f4 {[%clk 0:01:01]}  a2 {[%clk 0:00:39]} 36. Rb6+ {[%clk 0:01:00]}  Ke7 {[%clk 0:00:39]} 37. Ra6 {[%clk 0:01:00]}  d4 {[%clk 0:00:37]} 38. Nd3 {[%clk 0:00:56]}  Nc7 {[%clk 0:00:35]} 39. Ra7 {[%clk 0:00:54]}  Kd6 {[%clk 0:00:35]} 40. Nb4 {[%clk 0:00:52]}  N7b5 {[%clk 0:00:31]} 41. Ra6+ {[%clk 0:00:51]}  Kc5 {[%clk 0:00:28]} 42. Nxa2 {[%clk 0:00:51]}  Ne2+ {[%clk 0:00:29]} 43. Kf2 {[%clk 0:00:50]}  Nxf4 {[%clk 0:00:30]} 44. Nc1 {[%clk 0:00:42]}  Nc3 {[%clk 0:00:24]} 45. Kf3 {[%clk 0:00:40]}  g5 {[%clk 0:00:24]} 46. Ra5+ {[%clk 0:00:38]}  Kc4 {[%clk 0:00:21]} 47. Rxg5 {[%clk 0:00:36]}  d3 {[%clk 0:00:20]} 48. Nxd3 {[%clk 0:00:23]}  Nxd3 {[%clk 0:00:19]} 49. h4 {[%clk 0:00:23]}  Kd4 {[%clk 0:00:17]} 50. Rg8 {[%clk 0:00:20]}  Ne5+ {[%clk 0:00:17]} 51. Kf4 {[%clk 0:00:15]}  Nd5+ {[%clk 0:00:17]} 52. Kg3 {[%clk 0:00:15]}  Nf6 {[%clk 0:00:16]} 53. Rd8+ {[%clk 0:00:12]}  Ke4 {[%clk 0:00:16]} 54. g5 {[%clk 0:00:11]}  Nh5+ {[%clk 0:00:17]} 55. Kh3 {[%clk 0:00:09]}  Kf5 {[%clk 0:00:16]} 56. Rd5 {[%clk 0:00:08]}  Nf4+ {[%clk 0:00:16]} 57. Kg3 {[%clk 0:00:08]}  Nxd5 {[%clk 0:00:17]} 58. h5 {[%clk 0:00:07]}  Kxg5 {[%clk 0:00:16]} 59. h6 {[%clk 0:00:07]}  Kxh6 {[%clk 0:00:16]} 1/2-1/2

[Event "December 19 Late 2023"]
[Site "https://www.chess.com"]
[Date "2023.12.19"]
[Round "1"]
[White "Leiva, Gianmarco"]
[Black "Semenenko, Dmytry"]
[Result "1-0"]
[Board "83"]
[TimeControl "180+1"]
[WhiteFideId "3804399"]
[BlackFideId "14118645"]
[WhiteElo "2338"]
[BlackElo "2113"]
[WhiteTeam "PER"]
[BlackTeam "UKR"]
[WhiteClock "0:02:04"]
[BlackClock "0:01:27"]

1. e4 {[%clk 0:03:00]}  Nf6 {[%clk 0:02:59]} 2. e5 {[%clk 0:02:59]}  Nd5 {[%clk 0:02:59]} 3. d4 {[%clk 0:03:00]}  d6 {[%clk 0:02:59]} 4. exd6 {[%clk 0:03:00]}  cxd6 {[%clk 0:02:59]} 5. c4 {[%clk 0:02:59]}  Nb6 {[%clk 0:02:59]} 6. Bd3 {[%clk 0:03:00]}  g6 {[%clk 0:03:00]} 7. Nc3 {[%clk 0:02:56]}  Bg7 {[%clk 0:02:59]} 8. Be3 {[%clk 0:02:56]}  Nc6 {[%clk 0:02:59]} 9. Nge2 {[%clk 0:02:32]}  O-O {[%clk 0:02:55]} 10. O-O {[%clk 0:02:29]}  d5 {[%clk 0:02:52]} 11. c5 {[%clk 0:02:28]}  Nc4 {[%clk 0:02:52]} 12. Bxc4 {[%clk 0:02:28]}  dxc4 {[%clk 0:02:53]} 13. d5 {[%clk 0:02:29]}  Nb4 {[%clk 0:02:51]} 14. Qd2 {[%clk 0:02:28]}  Bf5 {[%clk 0:02:47]} 15. Bd4 {[%clk 0:02:26]}  Bxd4 {[%clk 0:02:31]} 16. Nxd4 {[%clk 0:02:23]}  Bd3 {[%clk 0:02:29]} 17. Rfe1 {[%clk 0:02:13]}  Nxd5 {[%clk 0:02:20]} 18. Qh6 {[%clk 0:02:08]}  Nb4 {[%clk 0:01:53]} 19. Nf3 {[%clk 0:02:06]}  Nc2 {[%clk 0:01:27]} 20. Ng5 {[%clk 0:02:04]} 1-0

[Event "December 19 Late 2023"]
[Site "https://www.chess.com"]
[Date "2023.12.19"]
[Round "1"]
[White "Szyszylo, Rafal"]
[Black "Sun, Rick"]
[Result "1-0"]
[Board "84"]
[TimeControl "180+1"]
[WhiteFideId "1109626"]
[BlackFideId "30909481"]
[WhiteElo "1951"]
[BlackElo "2169"]
[WhiteTeam "POL"]
[BlackTeam "USA"]
[WhiteClock "0:00:09"]
[BlackClock "0:00:38"]

1. e4 {[%clk 0:03:00]}  d6 {[%clk 0:03:00]} 2. d4 {[%clk 0:02:58]}  Nf6 {[%clk 0:02:59]} 3. Nc3 {[%clk 0:02:58]}  Nbd7 {[%clk 0:02:59]} 4. Be3 {[%clk 0:02:58]}  e5 {[%clk 0:03:00]} 5. Qd2 {[%clk 0:02:57]}  Be7 {[%clk 0:03:00]} 6. O-O-O {[%clk 0:02:56]}  c6 {[%clk 0:03:00]} 7. f3 {[%clk 0:02:56]}  b5 {[%clk 0:03:00]} 8. g4 {[%clk 0:02:57]}  exd4 {[%clk 0:02:57]} 9. Bxd4 {[%clk 0:02:56]}  b4 {[%clk 0:02:58]} 10. Nce2 {[%clk 0:02:56]}  c5 {[%clk 0:02:58]} 11. Be3 {[%clk 0:02:56]}  Qa5 {[%clk 0:02:58]} 12. Kb1 {[%clk 0:02:56]}  Ne5 {[%clk 0:02:58]} 13. Nc1 {[%clk 0:02:55]}  O-O {[%clk 0:02:52]} 14. g5 {[%clk 0:02:55]}  Nfd7 {[%clk 0:02:52]} 15. f4 {[%clk 0:02:54]}  Ng4 {[%clk 0:02:50]} 16. Bc4 {[%clk 0:02:45]}  Nb6 {[%clk 0:02:46]} 17. Bd5 {[%clk 0:02:44]}  Nxd5 {[%clk 0:02:41]} 18. exd5 {[%clk 0:02:42]}  Re8 {[%clk 0:02:30]} 19. Nf3 {[%clk 0:02:33]}  Bf5 {[%clk 0:02:21]} 20. Bg1 {[%clk 0:02:28]}  Be4 {[%clk 0:02:14]} 21. Qg2 {[%clk 0:02:26]}  c4 {[%clk 0:01:43]} 22. Qxg4 {[%clk 0:02:20]}  b3 {[%clk 0:01:41]} 23. axb3 {[%clk 0:02:18]}  cxb3 {[%clk 0:01:39]} 24. Nxb3 {[%clk 0:02:15]}  Qa4 {[%clk 0:01:34]} 25. Rd4 {[%clk 0:01:56]}  Qxb3 {[%clk 0:01:31]} 26. Rxe4 {[%clk 0:01:56]}  Qxd5 {[%clk 0:01:31]} 27. Rd4 {[%clk 0:01:16]}  Qc6 {[%clk 0:01:31]} 28. h4 {[%clk 0:01:12]}  Rab8 {[%clk 0:01:20]} 29. Rh2 {[%clk 0:01:06]}  d5 {[%clk 0:01:08]} 30. Ne5 {[%clk 0:00:52]}  Qc3 {[%clk 0:01:06]} 31. b3 {[%clk 0:00:46]}  Bc5 {[%clk 0:01:01]} 32. Rd3 {[%clk 0:00:31]}  Qe1+ {[%clk 0:00:53]} 33. Rd1 {[%clk 0:00:32]}  Qc3 {[%clk 0:00:49]} 34. Bxc5 {[%clk 0:00:31]}  Qxc5 {[%clk 0:00:50]} 35. Nd7 {[%clk 0:00:24]}  Qc8 {[%clk 0:00:48]} 36. Rxd5 {[%clk 0:00:21]}  Rb4 {[%clk 0:00:45]} 37. Rhd2 {[%clk 0:00:20]}  Rbe4 {[%clk 0:00:32]} 38. Kb2 {[%clk 0:00:19]}  a5 {[%clk 0:00:31]} 39. Qf5 {[%clk 0:00:19]}  a4 {[%clk 0:00:29]} 40. Nc5 {[%clk 0:00:16]}  Qa8 {[%clk 0:00:21]} 41. Qxe4 {[%clk 0:00:13]}  a3+ {[%clk 0:00:22]} 42. Ka2 {[%clk 0:00:13]}  Rxe4 {[%clk 0:00:22]} 43. Rd8+ {[%clk 0:00:13]}  Re8 {[%clk 0:00:23]} 44. Rxa8 {[%clk 0:00:13]}  Rxa8 {[%clk 0:00:24]} 45. b4 {[%clk 0:00:12]}  h6 {[%clk 0:00:24]} 46. b5 {[%clk 0:00:10]}  hxg5 {[%clk 0:00:25]} 47. hxg5 {[%clk 0:00:10]}  Rb8 {[%clk 0:00:26]} 48. c4 {[%clk 0:00:09]}  Kh8 {[%clk 0:00:26]} 49. Kxa3 {[%clk 0:00:09]}  Kh7 {[%clk 0:00:26]} 50. Kb4 {[%clk 0:00:09]}  Kg6 {[%clk 0:00:27]} 51. Nd7 {[%clk 0:00:09]}  Rb7 {[%clk 0:00:26]} 52. c5 {[%clk 0:00:10]}  Kf5 {[%clk 0:00:26]} 53. c6 {[%clk 0:00:10]}  Rc7 {[%clk 0:00:26]} 54. Kc5 {[%clk 0:00:10]}  Kxf4 {[%clk 0:00:27]} 55. b6 {[%clk 0:00:11]}  Rxc6+ {[%clk 0:00:27]} 56. Kxc6 {[%clk 0:00:11]}  Kxg5 {[%clk 0:00:28]} 57. b7 {[%clk 0:00:11]}  f5 {[%clk 0:00:29]} 58. b8=Q {[%clk 0:00:12]}  g6 {[%clk 0:00:30]} 59. Qg8 {[%clk 0:00:12]}  Kh5 {[%clk 0:00:30]} 60. Nf8 {[%clk 0:00:12]}  Kg5 {[%clk 0:00:30]} 61. Qxg6+ {[%clk 0:00:12]}  Kf4 {[%clk 0:00:31]} 62. Ne6+ {[%clk 0:00:11]}  Ke3 {[%clk 0:00:32]} 63. Rg2 {[%clk 0:00:09]}  f4 {[%clk 0:00:33]} 64. Qf5 {[%clk 0:00:07]}  Kf3 {[%clk 0:00:34]} 65. Qxf4+ {[%clk 0:00:07]}  Kxg2 {[%clk 0:00:34]} 66. Qf5 {[%clk 0:00:07]}  Kg3 {[%clk 0:00:35]} 67. Kd5 {[%clk 0:00:08]}  Kh4 {[%clk 0:00:35]} 68. Ke5 {[%clk 0:00:08]}  Kg3 {[%clk 0:00:36]} 69. Ke4 {[%clk 0:00:09]}  Kh4 {[%clk 0:00:36]} 70. Ke3 {[%clk 0:00:10]}  Kg3 {[%clk 0:00:36]} 71. Qf4+ {[%clk 0:00:10]}  Kh3 {[%clk 0:00:36]} 72. Qg5 {[%clk 0:00:10]}  Kh2 {[%clk 0:00:37]} 73. Kf2 {[%clk 0:00:10]}  Kh1 {[%clk 0:00:38]} 74. Qg2# {[%clk 0:00:09]} 1-0

[Event "December 19 Late 2023"]
[Site "https://www.chess.com"]
[Date "2023.12.19"]
[Round "1"]
[White "Skibbe, Willi"]
[Black "Dobrikov, Marco"]
[Result "0-1"]
[Board "86"]
[TimeControl "180+1"]
[WhiteFideId "4682190"]
[BlackFideId "12950378"]
[WhiteElo "2365"]
[BlackElo "2394"]
[WhiteTeam "GER"]
[BlackTeam "GER"]
[WhiteClock "0:00:11"]
[BlackClock "0:02:11"]

1. d4 {[%clk 0:02:52]}  g6 {[%clk 0:03:00]} 2. c4 {[%clk 0:02:44]}  Bg7 {[%clk 0:03:00]} 3. e4 {[%clk 0:02:30]}  d6 {[%clk 0:02:54]} 4. Nc3 {[%clk 0:02:10]}  e5 {[%clk 0:02:54]} 5. d5 {[%clk 0:02:09]}  a5 {[%clk 0:02:41]} 6. Bd3 {[%clk 0:02:03]}  Na6 {[%clk 0:02:42]} 7. Nge2 {[%clk 0:02:02]}  Nc5 {[%clk 0:02:42]} 8. Bc2 {[%clk 0:02:02]}  f5 {[%clk 0:02:42]} 9. f3 {[%clk 0:01:57]}  f4 {[%clk 0:02:42]} 10. Na4 {[%clk 0:01:44]}  Na6 {[%clk 0:02:38]} 11. g3 {[%clk 0:01:30]}  g5 {[%clk 0:02:38]} 12. g4 {[%clk 0:01:30]}  h5 {[%clk 0:02:38]} 13. gxh5 {[%clk 0:01:25]}  Rxh5 {[%clk 0:02:39]} 14. b3 {[%clk 0:01:23]}  g4 {[%clk 0:02:36]} 15. Nec3 {[%clk 0:01:17]}  g3 {[%clk 0:02:36]} 16. Qe2 {[%clk 0:01:01]}  Qh4 {[%clk 0:02:35]} 17. Kd2 {[%clk 0:00:59]}  Qxh2 {[%clk 0:02:24]} 18. Rxh2 {[%clk 0:00:42]}  Rxh2 {[%clk 0:02:25]} 19. Qxh2 {[%clk 0:00:40]}  gxh2 {[%clk 0:02:26]} 20. Ba3 {[%clk 0:00:41]}  Bh3 {[%clk 0:02:11]} 21. Rh1 {[%clk 0:00:39]}  Bg2 {[%clk 0:02:12]} 22. Rxh2 {[%clk 0:00:39]}  Bxf3 {[%clk 0:02:13]} 23. Rh7 {[%clk 0:00:34]}  Kf7 {[%clk 0:02:13]} 24. Nb5 {[%clk 0:00:19]}  Nf6 {[%clk 0:02:12]} 25. Rh3 {[%clk 0:00:11]}  Bxe4 {[%clk 0:02:11]} 0-1

[Event "December 19 Late 2023"]
[Site "https://www.chess.com"]
[Date "2023.12.19"]
[Round "1"]
[White "Sourath Biswas"]
[Black "Nery Junior, Jose Antonio"]
[Result "1-0"]
[Board "87"]
[TimeControl "180+1"]
[WhiteFideId "35091484"]
[BlackFideId "2104822"]
[WhiteElo "2171"]
[BlackElo "2197"]
[WhiteTeam "IND"]
[BlackTeam "BRA"]
[WhiteClock "0:00:17"]
[BlackClock "0:00:00"]

1. d4 {[%clk 0:03:00]}  d5 {[%clk 0:02:21]} 2. Bf4 {[%clk 0:02:56]}  c5 {[%clk 0:02:13]} 3. e3 {[%clk 0:02:51]}  Nc6 {[%clk 0:02:13]} 4. Nf3 {[%clk 0:02:50]}  Bf5 {[%clk 0:02:12]} 5. dxc5 {[%clk 0:02:44]}  e6 {[%clk 0:01:37]} 6. Nd4 {[%clk 0:02:42]}  Bxc5 {[%clk 0:01:33]} 7. Nxf5 {[%clk 0:02:42]}  exf5 {[%clk 0:01:34]} 8. c3 {[%clk 0:02:43]}  Nf6 {[%clk 0:01:30]} 9. Be2 {[%clk 0:02:43]}  h6 {[%clk 0:01:30]} 10. Nd2 {[%clk 0:02:42]}  O-O {[%clk 0:01:29]} 11. Qc2 {[%clk 0:02:41]}  Ne7 {[%clk 0:01:21]} 12. O-O {[%clk 0:02:33]}  Ne4 {[%clk 0:01:19]} 13. Rfd1 {[%clk 0:02:31]}  Qb6 {[%clk 0:01:08]} 14. Nb3 {[%clk 0:02:21]}  Bd6 {[%clk 0:01:05]} 15. Bxd6 {[%clk 0:02:21]}  Qxd6 {[%clk 0:01:06]} 16. Bf3 {[%clk 0:02:18]}  Qe5 {[%clk 0:01:02]} 17. g3 {[%clk 0:02:02]}  Rac8 {[%clk 0:01:02]} 18. Qd3 {[%clk 0:01:59]}  Rfd8 {[%clk 0:01:02]} 19. Qd4 {[%clk 0:01:58]}  Qb8 {[%clk 0:00:54]} 20. Bg2 {[%clk 0:01:31]}  Rc6 {[%clk 0:00:53]} 21. Qd3 {[%clk 0:00:36]}  Rg6 {[%clk 0:00:53]} 22. Nd4 {[%clk 0:00:32]}  a6 {[%clk 0:00:50]} 23. Qe2 {[%clk 0:00:29]}  Qe5 {[%clk 0:00:46]} 24. Rac1 {[%clk 0:00:20]}  b5 {[%clk 0:00:42]} 25. a4 {[%clk 0:00:19]}  bxa4 {[%clk 0:00:39]} 26. Ra1 {[%clk 0:00:20]}  Nc5 {[%clk 0:00:35]} 27. Nf3 {[%clk 0:00:17]}  Qf6 {[%clk 0:00:33]} 28. Nd4 {[%clk 0:00:16]}  Nc6 {[%clk 0:00:28]} 29. Qc2 {[%clk 0:00:14]}  Ne7 {[%clk 0:00:12]} 30. Ne2 {[%clk 0:00:15]}  Rg4 {[%clk 0:00:09]} 31. Nf4 {[%clk 0:00:15]}  Qe5 {[%clk 0:00:03]} 32. h3 {[%clk 0:00:16]}  Rg5 {[%clk 0:00:03]} 33. Nd3 {[%clk 0:00:16]}  Nxd3 {[%clk 0:00:02]} 34. Rxd3 {[%clk 0:00:17]}  h5 {[%clk 0:00:00]} 35. f4 {[%clk 0:00:17]} 1-0